Workbook

Sheet Costurile de renovare a băii
B1: Foaie de lucru Costuri pentru renovarea băii
B2: NOTĂ: Coloanele Diferență din tabel vor afișa dacă valorile reale pentru costuri au depășit costurile estimate. Numere roșii arată că au fost depășite (negativ), iar cele negre indică faptul că sunt sub valorile estimate (pozitive).
E3: Cost structurat (lei) | H3: Cost total (lei)
B4: Suprafață | C4: Articole | D4: Cantitate | E4: Estimat | F4: Efectiv | G4: Diferență | H4: Estimat | I4: Efectiv | J4: Diferență
B5: Baie/duș | C5: Cadă, fontă, 12 cm, standard | D5: 1 | E5: 250.00 lei | F5: =RANDBETWEEN(E5+2,E5+20) -> 261.00 lei | G5: =IFERROR(Costuri[[#This Row],[Estimat]]-Costuri[[#This Row],[Efectiv]], "") -> -11.00 lei | H5: =IFERROR(Costuri[[#This Row],[Cantitate]]*Costuri[[#This Row],[Estimat]], "") -> 250.00 lei | I5: =IFERROR(Costuri[[#This Row],[Cantitate]]*Costuri[[#This Row],[Efectiv]], "") -> 261.00 lei | J5: =IFERROR(Costuri[[#This Row],[Estimat ]]-Costuri[[#This Row],[Efectiv ]], "") -> -11.00 lei
B6: Baie/duș | C6: Uși pentru cabina de duș, rabatabile, standard | D6: 1 | E6: 200.00 lei | F6: 209.00 lei | G6: =IFERROR(Costuri[[#This Row],[Estimat]]-Costuri[[#This Row],[Efectiv]], "") -> -9.00 lei | H6: =IFERROR(Costuri[[#This Row],[Cantitate]]*Costuri[[#This Row],[Estimat]], "") -> 200.00 lei | I6: =IFERROR(Costuri[[#This Row],[Cantitate]]*Costuri[[#This Row],[Efectiv]], "") -> 209.00 lei | J6: =IFERROR(Costuri[[#This Row],[Estimat ]]-Costuri[[#This Row],[Efectiv ]], "") -> -9.00 lei
B7: Baie/duș | C7: Cap de duș, standard | D7: 1 | E7: 50.00 lei | F7: 60.00 lei | G7: =IFERROR(Costuri[[#This Row],[Estimat]]-Costuri[[#This Row],[Efectiv]], "") -> -10.00 lei | H7: =IFERROR(Costuri[[#This Row],[Cantitate]]*Costuri[[#This Row],[Estimat]], "") -> 50.00 lei | I7: =IFERROR(Costuri[[#This Row],[Cantitate]]*Costuri[[#This Row],[Efectiv]], "") -> 60.00 lei | J7: =IFERROR(Costuri[[#This Row],[Estimat ]]-Costuri[[#This Row],[Efectiv ]], "") -> -10.00 lei
B8: Baie/duș | C8: Perete cadă, standard | D8: 1 | E8: 200.00 lei | F8: 207.00 lei | G8: =IFERROR(Costuri[[#This Row],[Estimat]]-Costuri[[#This Row],[Efectiv]], "") -> -7.00 lei | H8: =IFERROR(Costuri[[#This Row],[Cantitate]]*Costuri[[#This Row],[Estimat]], "") -> 200.00 lei | I8: =IFERROR(Costuri[[#This Row],[Cantitate]]*Costuri[[#This Row],[Efectiv]], "") -> 207.00 lei | J8: =IFERROR(Costuri[[#This Row],[Estimat ]]-Costuri[[#This Row],[Efectiv ]], "") -> -7.00 lei
B9: Dulapuri | C9: Dulap medicamente 60 cm, lux | D9: 1 | E9: 200.00 lei | F9: 206.00 lei | G9: =IFERROR(Costuri[[#This Row],[Estimat]]-Costuri[[#This Row],[Efectiv]], "") -> -6.00 lei | H9: =IFERROR(Costuri[[#This Row],[Cantitate]]*Costuri[[#This Row],[Estimat]], "") -> 200.00 lei | I9: =IFERROR(Costuri[[#This Row],[Cantitate]]*Costuri[[#This Row],[Efectiv]], "") -> 206.00 lei | J9: =IFERROR(Costuri[[#This Row],[Estimat ]]-Costuri[[#This Row],[Efectiv ]], "") -> -6.00 lei
B10: Dulapuri | C10: Masă de toaletă modulară 76 cm, standard | D10: 2 | E10: 100.00 lei | F10: 116.00 lei | G10: =IFERROR(Costuri[[#This Row],[Estimat]]-Costuri[[#This Row],[Efectiv]], "") -> -16.00 lei | H10: =IFERROR(Costuri[[#This Row],[Cantitate]]*Costuri[[#This Row],[Estimat]], "") -> 200.00 lei | I10: =IFERROR(Costuri[[#This Row],[Cantitate]]*Costuri[[#This Row],[Efectiv]], "") -> 232.00 lei | J10: =IFERROR(Costuri[[#This Row],[Estimat ]]-Costuri[[#This Row],[Efectiv ]], "") -> -32.00 lei
B11: Blaturi | C11: Faianță, lux (cant. în metri lineari) | D11: 5 | E11: 22.50 lei | F11: 39.00 lei | G11: =IFERROR(Costuri[[#This Row],[Estimat]]-Costuri[[#This Row],[Efectiv]], "") -> -16.50 lei | H11: =IFERROR(Costuri[[#This Row],[Cantitate]]*Costuri[[#This Row],[Estimat]], "") -> 112.50 lei | I11: =IFERROR(Costuri[[#This Row],[Cantitate]]*Costuri[[#This Row],[Efectiv]], "") -> 195.00 lei | J11: =IFERROR(Costuri[[#This Row],[Estimat ]]-Costuri[[#This Row],[Efectiv ]], "") -> -82.50 lei
B12: Robinete | C12: Robinet, cadă, standard | D12: 1 | E12: 90.00 lei | F12: 99.00 lei | G12: =IFERROR(Costuri[[#This Row],[Estimat]]-Costuri[[#This Row],[Efectiv]], "") -> -9.00 lei | H12: =IFERROR(Costuri[[#This Row],[Cantitate]]*Costuri[[#This Row],[Estimat]], "") -> 90.00 lei | I12: =IFERROR(Costuri[[#This Row],[Cantitate]]*Costuri[[#This Row],[Efectiv]], "") -> 99.00 lei | J12: =IFERROR(Costuri[[#This Row],[Estimat ]]-Costuri[[#This Row],[Efectiv ]], "") -> -9.00 lei
B13: Robinete | C13: Robinet, duș, un singur mâner, standard | D13: 1 | E13: 115.00 lei | F13: 126.00 lei | G13: =IFERROR(Costuri[[#This Row],[Estimat]]-Costuri[[#This Row],[Efectiv]], "") -> -11.00 lei | H13: =IFERROR(Costuri[[#This Row],[Cantitate]]*Costuri[[#This Row],[Estimat]], "") -> 115.00 lei | I13: =IFERROR(Costuri[[#This Row],[Cantitate]]*Costuri[[#This Row],[Efectiv]], "") -> 126.00 lei | J13: =IFERROR(Costuri[[#This Row],[Estimat ]]-Costuri[[#This Row],[Efectiv ]], "") -> -11.00 lei
B14: Robinete | C14: Robinet, standard | D14: 1 | E14: 95.00 lei | F14: 101.00 lei | G14: =IFERROR(Costuri[[#This Row],[Estimat]]-Costuri[[#This Row],[Efectiv]], "") -> -6.00 lei | H14: =IFERROR(Costuri[[#This Row],[Cantitate]]*Costuri[[#This Row],[Estimat]], "") -> 95.00 lei | I14: =IFERROR(Costuri[[#This Row],[Cantitate]]*Costuri[[#This Row],[Efectiv]], "") -> 101.00 lei | J14: =IFERROR(Costuri[[#This Row],[Estimat ]]-Costuri[[#This Row],[Efectiv ]], "") -> -6.00 lei
B15: Pardoseală | C15: Faianță, standard (cant. în metri pătrați) | D15: 35 | E15: 12.00 lei | F15: 23.00 lei | G15: =IFERROR(Costuri[[#This Row],[Estimat]]-Costuri[[#This Row],[Efectiv]], "") -> -11.00 lei | H15: =IFERROR(Costuri[[#This Row],[Cantitate]]*Costuri[[#This Row],[Estimat]], "") -> 420.00 lei | I15: =IFERROR(Costuri[[#This Row],[Cantitate]]*Costuri[[#This Row],[Efectiv]], "") -> 805.00 lei | J15: =IFERROR(Costuri[[#This Row],[Estimat ]]-Costuri[[#This Row],[Efectiv ]], "") -> -385.00 lei
B16: Hardware | C16: Bară prosop, standard | D16: 2 | E16: 15.00 lei | F16: 18.00 lei | G16: =IFERROR(Costuri[[#This Row],[Estimat]]-Costuri[[#This Row],[Efectiv]], "") -> -3.00 lei | H16: =IFERROR(Costuri[[#This Row],[Cantitate]]*Costuri[[#This Row],[Estimat]], "") -> 30.00 lei | I16: =IFERROR(Costuri[[#This Row],[Cantitate]]*Costuri[[#This Row],[Efectiv]], "") -> 36.00 lei | J16: =IFERROR(Costuri[[#This Row],[Estimat ]]-Costuri[[#This Row],[Efectiv ]], "") -> -6.00 lei
B17: Hardware | C17: Suport hârtie igienică | D17: 1 | E17: 10.00 lei | F17: 28.00 lei | G17: =IFERROR(Costuri[[#This Row],[Estimat]]-Costuri[[#This Row],[Efectiv]], "") -> -18.00 lei | H17: =IFERROR(Costuri[[#This Row],[Cantitate]]*Costuri[[#This Row],[Estimat]], "") -> 10.00 lei | I17: =IFERROR(Costuri[[#This Row],[Cantitate]]*Costuri[[#This Row],[Efectiv]], "") -> 28.00 lei | J17: =IFERROR(Costuri[[#This Row],[Estimat ]]-Costuri[[#This Row],[Efectiv ]], "") -> -18.00 lei
B18: Iluminare | C18: Lumini încastrate, standard | D18: 4 | E18: 25.00 lei | F18: 40.00 lei | G18: =IFERROR(Costuri[[#This Row],[Estimat]]-Costuri[[#This Row],[Efectiv]], "") -> -15.00 lei | H18: =IFERROR(Costuri[[#This Row],[Cantitate]]*Costuri[[#This Row],[Estimat]], "") -> 100.00 lei | I18: =IFERROR(Costuri[[#This Row],[Cantitate]]*Costuri[[#This Row],[Efectiv]], "") -> 160.00 lei | J18: =IFERROR(Costuri[[#This Row],[Estimat ]]-Costuri[[#This Row],[Efectiv ]], "") -> -60.00 lei
B19: Chiuvete | C19: Vas de toaletă, standard | D19: 2 | E19: 60.00 lei | F19: 70.00 lei | G19: =IFERROR(Costuri[[#This Row],[Estimat]]-Costuri[[#This Row],[Efectiv]], "") -> -10.00 lei | H19: =IFERROR(Costuri[[#This Row],[Cantitate]]*Costuri[[#This Row],[Estimat]], "") -> 120.00 lei | I19: =IFERROR(Costuri[[#This Row],[Cantitate]]*Costuri[[#This Row],[Efectiv]], "") -> 140.00 lei | J19: =IFERROR(Costuri[[#This Row],[Estimat ]]-Costuri[[#This Row],[Efectiv ]], "") -> -20.00 lei
B20: Altele | D20: 1 | E20: 20.00 lei | F20: 30.00 lei | G20: =IFERROR(Costuri[[#This Row],[Estimat]]-Costuri[[#This Row],[Efectiv]], "") -> -10.00 lei | H20: =IFERROR(Costuri[[#This Row],[Cantitate]]*Costuri[[#This Row],[Estimat]], "") -> 20.00 lei | I20: =IFERROR(Costuri[[#This Row],[Cantitate]]*Costuri[[#This Row],[Efectiv]], "") -> 30.00 lei | J20: =IFERROR(Costuri[[#This Row],[Estimat ]]-Costuri[[#This Row],[Efectiv ]], "") -> -10.00 lei
B21: Subtotal | E21: =SUBTOTAL(109,Costuri[Estimat]) -> 1,464.50 lei | F21: =SUBTOTAL(109,Costuri[Efectiv]) -> 1,633.00 lei | G21: =SUBTOTAL(109,Costuri[Diferență]) -> -168.50 lei | H21: =SUBTOTAL(109,Costuri[[Estimat ]]) -> 2,212.50 lei | I21: =SUBTOTAL(109,Costuri[[Efectiv ]]) -> 2,895.00 lei | J21: =SUBTOTAL(109,Costuri[[Diferență ]]) -> -682.50 lei
B22: Costuri neașteptate (adăugare estimată de 30%) | E22: =IFERROR(Costuri[[#Totals],[Estimat]]*0.3, "") -> 439.35 lei | H22: =IFERROR(Costuri[[#Totals],[Estimat ]]*0.3, "") -> 663.75 lei
B23: Costuri totale | E23: =IFERROR(SUM(E21:E21), "") -> 1,464.50 lei | H23: =IFERROR(SUM(Costuri[[#Totals],[Estimat ]],Surplus), "") -> 2,876.25 lei
